[Event "Titled Tuesday Blitz November 22 Late 2022"]
[White "Poliakova, Varvara"]
[Black "Yuan, Qingyu"]
[WhiteFideId "13518313"]
[BlackFideId "8609772"]
[WhiteElo "2099"]
[BlackElo "2359"]
[Result "0-1"]
[Round "10"]
[TimeControl "180+1"]
[Date "2022.11.22"]
[WhiteClock "0:00:16"]
[BlackClock "0:00:07"]

1. e4 {[%clk 0:03:00]}  e5 {[%clk 0:03:00]} 2. Nf3 {[%clk 0:02:59]}  Nc6 {[%clk 0:03:00]} 3. Bc4 {[%clk 0:02:59]}  Bc5 {[%clk 0:03:00]} 4. d3 {[%clk 0:02:59]}  Nf6 {[%clk 0:03:01]} 5. c3 {[%clk 0:03:00]}  O-O {[%clk 0:03:01]} 6. Bb3 {[%clk 0:02:59]}  d5 {[%clk 0:02:57]} 7. Nbd2 {[%clk 0:02:58]}  Re8 {[%clk 0:02:55]} 8. O-O {[%clk 0:02:57]}  a5 {[%clk 0:02:54]} 9. a4 {[%clk 0:02:56]}  Bg4 {[%clk 0:02:51]} 10. h3 {[%clk 0:02:56]}  Bh5 {[%clk 0:02:41]} 11. Re1 {[%clk 0:02:55]}  Bb6 {[%clk 0:02:31]} 12. Nf1 {[%clk 0:02:53]}  Qd7 {[%clk 0:02:12]} 13. Ng3 {[%clk 0:02:48]}  Bg6 {[%clk 0:02:11]} 14. Nh4 {[%clk 0:02:44]}  Bc5 {[%clk 0:01:42]} 15. Qf3 {[%clk 0:02:40]}  dxe4 {[%clk 0:01:36]} 16. dxe4 {[%clk 0:02:41]}  Nd8 {[%clk 0:01:29]} 17. Nhf5 {[%clk 0:02:30]}  Ne6 {[%clk 0:01:11]} 18. Be3 {[%clk 0:02:17]}  Bxe3 {[%clk 0:01:08]} 19. fxe3 {[%clk 0:02:18]}  Ng5 {[%clk 0:01:02]} 20. Qd1 {[%clk 0:01:37]}  Qxd1 {[%clk 0:00:44]} 21. Rexd1 {[%clk 0:01:38]}  Ngxe4 {[%clk 0:00:44]} 22. Nxe4 {[%clk 0:01:34]}  Nxe4 {[%clk 0:00:45]} 23. Nh4 {[%clk 0:01:33]}  Nc5 {[%clk 0:00:42]} 24. Bd5 {[%clk 0:01:28]}  c6 {[%clk 0:00:40]} 25. Nxg6 {[%clk 0:01:28]}  hxg6 {[%clk 0:00:39]} 26. Bf3 {[%clk 0:01:24]}  Red8 {[%clk 0:00:34]} 27. b4 {[%clk 0:01:22]}  Rxd1+ {[%clk 0:00:33]} 28. Bxd1 {[%clk 0:01:23]}  axb4 {[%clk 0:00:25]} 29. cxb4 {[%clk 0:01:24]}  Nd3 {[%clk 0:00:25]} 30. Rb1 {[%clk 0:01:22]}  e4 {[%clk 0:00:24]} 31. Bc2 {[%clk 0:01:20]}  Kf8 {[%clk 0:00:23]} 32. b5 {[%clk 0:01:10]}  c5 {[%clk 0:00:20]} 33. Kf1 {[%clk 0:01:05]}  Ke7 {[%clk 0:00:19]} 34. Ke2 {[%clk 0:01:05]}  c4 {[%clk 0:00:19]} 35. b6 {[%clk 0:01:02]}  Kd6 {[%clk 0:00:16]} 36. Rb5 {[%clk 0:01:02]}  f6 {[%clk 0:00:15]} 37. h4 {[%clk 0:01:00]}  f5 {[%clk 0:00:16]} 38. h5 {[%clk 0:01:00]}  Nc5 {[%clk 0:00:11]} 39. Rb4 {[%clk 0:00:52]}  Kd5 {[%clk 0:00:10]} 40. hxg6 {[%clk 0:00:51]}  Ra5 {[%clk 0:00:07]} 41. Kf2 {[%clk 0:00:47]}  Nd3+ {[%clk 0:00:06]} 42. Bxd3 {[%clk 0:00:46]}  exd3 {[%clk 0:00:07]} 43. Ke1 {[%clk 0:00:40]}  Kc5 {[%clk 0:00:08]} 44. Rb2 {[%clk 0:00:18]}  c3 {[%clk 0:00:07]} 45. Rf2 {[%clk 0:00:18]}  Rxa4 {[%clk 0:00:07]} 46. Rxf5+ {[%clk 0:00:18]}  Kxb6 {[%clk 0:00:06]} 47. Rd5 {[%clk 0:00:16]}  Ra1+ {[%clk 0:00:06]} 48. Kf2 {[%clk 0:00:16]}  d2 {[%clk 0:00:07]} 49. Ke2 {[%clk 0:00:16]}  Re1+ {[%clk 0:00:07]} 0-1


[Site "https://www.chess.com"]

[Event "Titled Tuesday Blitz November 22 Late 2022"]
[White "Prem, Pranav"]
[Black "Feng, Eric"]
[WhiteFideId "30901057"]
[BlackFideId "30952590"]
[WhiteElo "1970"]
[BlackElo "1785"]
[Result "1/2-1/2"]
[Round "10"]
[TimeControl "180+1"]
[Date "2022.11.23"]
[WhiteClock "0:00:07"]
[BlackClock "0:00:21"]

1. d4 {[%clk 0:03:00]}  Nf6 {[%clk 0:02:59]} 2. c4 {[%clk 0:03:00]}  e6 {[%clk 0:03:00]} 3. Nf3 {[%clk 0:02:59]}  d5 {[%clk 0:03:00]} 4. Nc3 {[%clk 0:02:56]}  Be7 {[%clk 0:02:59]} 5. Bg5 {[%clk 0:02:49]}  h6 {[%clk 0:02:58]} 6. Bh4 {[%clk 0:02:47]}  c6 {[%clk 0:02:56]} 7. e3 {[%clk 0:02:47]}  Nbd7 {[%clk 0:02:55]} 8. Qc2 {[%clk 0:02:45]}  O-O {[%clk 0:02:54]} 9. cxd5 {[%clk 0:02:26]}  cxd5 {[%clk 0:02:54]} 10. Bd3 {[%clk 0:02:23]}  b6 {[%clk 0:02:54]} 11. O-O {[%clk 0:02:23]}  Bb7 {[%clk 0:02:54]} 12. Rac1 {[%clk 0:02:20]}  Rc8 {[%clk 0:02:54]} 13. Qb1 {[%clk 0:02:20]}  a6 {[%clk 0:02:54]} 14. Ne2 {[%clk 0:02:16]}  b5 {[%clk 0:02:54]} 15. a3 {[%clk 0:02:08]}  Nb6 {[%clk 0:02:53]} 16. Rxc8 {[%clk 0:01:57]}  Qxc8 {[%clk 0:02:51]} 17. Rc1 {[%clk 0:01:56]}  Qd8 {[%clk 0:02:51]} 18. Qa2 {[%clk 0:01:43]}  Nfd7 {[%clk 0:02:46]} 19. Bxe7 {[%clk 0:01:39]}  Qxe7 {[%clk 0:02:47]} 20. b3 {[%clk 0:01:37]}  Rc8 {[%clk 0:02:40]} 21. Qb2 {[%clk 0:01:37]}  Nf6 {[%clk 0:02:36]} 22. Nf4 {[%clk 0:01:33]}  Ne4 {[%clk 0:02:34]} 23. Be2 {[%clk 0:01:24]}  g5 {[%clk 0:02:27]} 24. Nd3 {[%clk 0:01:22]}  f6 {[%clk 0:02:26]} 25. Rxc8+ {[%clk 0:01:19]}  Bxc8 {[%clk 0:02:26]} 26. Nfe1 {[%clk 0:01:08]}  Qc7 {[%clk 0:01:50]} 27. Nc5 {[%clk 0:00:57]}  Nxc5 {[%clk 0:01:48]} 28. dxc5 {[%clk 0:00:58]}  Nd7 {[%clk 0:01:48]} 29. b4 {[%clk 0:00:57]}  Qe5 {[%clk 0:01:49]} 30. Qd4 {[%clk 0:00:47]}  Qxd4 {[%clk 0:01:48]} 31. exd4 {[%clk 0:00:48]}  Kf7 {[%clk 0:01:48]} 32. Nd3 {[%clk 0:00:47]}  e5 {[%clk 0:01:48]} 33. dxe5 {[%clk 0:00:45]}  fxe5 {[%clk 0:01:49]} 34. Bg4 {[%clk 0:00:44]}  e4 {[%clk 0:01:20]} 35. Ne5+ {[%clk 0:00:34]}  Ke7 {[%clk 0:01:02]} 36. Nc6+ {[%clk 0:00:28]}  Ke8 {[%clk 0:00:53]} 37. Na7 {[%clk 0:00:23]}  Bb7 {[%clk 0:00:53]} 38. c6 {[%clk 0:00:23]}  Bxc6 {[%clk 0:00:53]} 39. Nxc6 {[%clk 0:00:24]}  Nb6 {[%clk 0:00:53]} 40. Be2 {[%clk 0:00:19]}  Kd7 {[%clk 0:00:52]} 41. Nd4 {[%clk 0:00:19]}  h5 {[%clk 0:00:48]} 42. Bxh5 {[%clk 0:00:17]}  Kd6 {[%clk 0:00:49]} 43. Kf1 {[%clk 0:00:15]}  Nc4 {[%clk 0:00:49]} 44. Nc2 {[%clk 0:00:15]}  Ke5 {[%clk 0:00:49]} 45. Ke2 {[%clk 0:00:15]}  d4 {[%clk 0:00:49]} 46. Kd1 {[%clk 0:00:12]}  d3 {[%clk 0:00:49]} 47. Ne3 {[%clk 0:00:13]}  Nxa3 {[%clk 0:00:48]} 48. Bg4 {[%clk 0:00:11]}  Kd4 {[%clk 0:00:47]} 49. Bc8 {[%clk 0:00:11]}  Kc3 {[%clk 0:00:42]} 50. Bxa6 {[%clk 0:00:11]}  Kxb4 {[%clk 0:00:42]} 51. g3 {[%clk 0:00:10]}  Kc3 {[%clk 0:00:41]} 52. h4 {[%clk 0:00:06]}  gxh4 {[%clk 0:00:40]} 53. gxh4 {[%clk 0:00:07]}  b4 {[%clk 0:00:40]} 54. Nd5+ {[%clk 0:00:05]}  Kb3 {[%clk 0:00:27]} 55. h5 {[%clk 0:00:05]}  Ka4 {[%clk 0:00:23]} 56. h6 {[%clk 0:00:04]}  b3 {[%clk 0:00:23]} 57. h7 {[%clk 0:00:04]}  b2 {[%clk 0:00:23]} 58. Nc3+ {[%clk 0:00:04]}  Kb3 {[%clk 0:00:24]} 59. h8=Q {[%clk 0:00:04]}  b1=Q+ {[%clk 0:00:20]} 60. Nxb1 {[%clk 0:00:05]}  Nxb1 {[%clk 0:00:21]} 61. Qd4 {[%clk 0:00:04]}  Ka3 {[%clk 0:00:19]} 62. Bxd3 {[%clk 0:00:04]}  exd3 {[%clk 0:00:18]} 63. Qxd3+ {[%clk 0:00:05]}  Ka2 {[%clk 0:00:19]} 64. Kc1 {[%clk 0:00:04]}  Na3 {[%clk 0:00:18]} 65. Qxa3+ {[%clk 0:00:04]}  Kxa3 {[%clk 0:00:19]} 66. f4 {[%clk 0:00:04]}  Kb4 {[%clk 0:00:19]} 67. f5 {[%clk 0:00:05]}  Kc5 {[%clk 0:00:20]} 68. f6 {[%clk 0:00:06]}  Kd6 {[%clk 0:00:20]} 69. f7 {[%clk 0:00:07]}  Ke7 {[%clk 0:00:21]} 1/2-1/2


[Site "https://www.chess.com"]

[Event "Titled Tuesday Blitz November 22 Late 2022"]
[White "Prydun, Andriy"]
[Black "Stanisz, Patryk"]
[WhiteFideId "14145898"]
[BlackFideId "1123106"]
[WhiteElo "2163"]
[BlackElo "2069"]
[Result "0-1"]
[Round "10"]
[TimeControl "180+1"]
[Date "2022.11.23"]
[WhiteClock "0:00:01"]
[BlackClock "0:00:13"]

1. e4 {[%clk 0:01:57]}  c5 {[%clk 0:02:59]} 2. Nf3 {[%clk 0:01:56]}  Nc6 {[%clk 0:02:59]} 3. Bb5 {[%clk 0:01:55]}  g6 {[%clk 0:02:58]} 4. Bxc6 {[%clk 0:01:52]}  dxc6 {[%clk 0:02:59]} 5. h3 {[%clk 0:01:51]}  Bg7 {[%clk 0:02:57]} 6. d3 {[%clk 0:01:51]}  Nf6 {[%clk 0:02:57]} 7. Nc3 {[%clk 0:01:51]}  Nd7 {[%clk 0:02:57]} 8. Be3 {[%clk 0:01:51]}  e5 {[%clk 0:02:57]} 9. Qd2 {[%clk 0:01:50]}  h6 {[%clk 0:02:57]} 10. O-O {[%clk 0:01:48]}  Qe7 {[%clk 0:02:58]} 11. Nh2 {[%clk 0:01:47]}  Nf8 {[%clk 0:02:57]} 12. f4 {[%clk 0:01:46]}  exf4 {[%clk 0:02:58]} 13. Rxf4 {[%clk 0:01:46]}  Ne6 {[%clk 0:02:59]} 14. Rf2 {[%clk 0:01:46]}  Nd4 {[%clk 0:02:57]} 15. Raf1 {[%clk 0:01:45]}  Be6 {[%clk 0:02:56]} 16. Nf3 {[%clk 0:01:33]}  O-O-O {[%clk 0:02:45]} 17. b3 {[%clk 0:01:30]}  g5 {[%clk 0:02:16]} 18. Ne2 {[%clk 0:01:25]}  Nxf3+ {[%clk 0:02:08]} 19. Rxf3 {[%clk 0:01:24]}  Be5 {[%clk 0:02:01]} 20. Qa5 {[%clk 0:01:13]}  b6 {[%clk 0:01:59]} 21. Qe1 {[%clk 0:01:11]}  h5 {[%clk 0:01:54]} 22. h4 {[%clk 0:00:27]}  gxh4 {[%clk 0:01:46]} 23. Bf4 {[%clk 0:00:24]}  f6 {[%clk 0:01:36]} 24. Qxh4 {[%clk 0:00:23]}  Bg4 {[%clk 0:01:11]} 25. Bxe5 {[%clk 0:00:19]}  Qxe5 {[%clk 0:01:05]} 26. R3f2 {[%clk 0:00:17]}  Rdf8 {[%clk 0:01:00]} 27. Ng3 {[%clk 0:00:15]}  Rhg8 {[%clk 0:00:59]} 28. a4 {[%clk 0:00:14]}  Qd4 {[%clk 0:00:58]} 29. Kh2 {[%clk 0:00:07]}  Rg6 {[%clk 0:00:25]} 30. Rf4 {[%clk 0:00:08]}  Qe5 {[%clk 0:00:18]} 31. R1f2 {[%clk 0:00:08]}  Kb7 {[%clk 0:00:12]} 32. Kg1 {[%clk 0:00:07]}  Qd4 {[%clk 0:00:12]} 33. Kh2 {[%clk 0:00:02]}  Qa1 {[%clk 0:00:12]} 34. e5 {[%clk 0:00:01]}  Qxe5 {[%clk 0:00:13]} 35. Re4 {[%clk 0:00:02]}  Qd5 {[%clk 0:00:12]} 36. Rff4 {[%clk 0:00:02]}  Qd6 {[%clk 0:00:12]} 37. Re3 {[%clk 0:00:02]}  f5 {[%clk 0:00:13]} 38. Ree4 {[%clk 0:00:01]}  Rf7 {[%clk 0:00:13]} 0-1


[Site "https://www.chess.com"]

[Event "Titled Tuesday Blitz November 22 Late 2022"]
[White "Rasulov, Vugar"]
[Black "Sarana, Alexey"]
[WhiteFideId "13402390"]
[BlackFideId "24133795"]
[WhiteElo "2509"]
[BlackElo "2708"]
[Result "0-1"]
[Round "10"]
[TimeControl "180+1"]
[Date "2022.11.22"]
[WhiteClock "0:00:04"]
[BlackClock "0:00:05"]

1. e4 {[%clk 0:03:00]}  c5 {[%clk 0:03:00]} 2. Nf3 {[%clk 0:03:01]}  d6 {[%clk 0:03:00]} 3. Bb5+ {[%clk 0:03:01]}  Bd7 {[%clk 0:03:00]} 4. Bxd7+ {[%clk 0:03:02]}  Nxd7 {[%clk 0:03:01]} 5. O-O {[%clk 0:03:00]}  e6 {[%clk 0:03:01]} 6. d4 {[%clk 0:03:00]}  cxd4 {[%clk 0:03:00]} 7. Nxd4 {[%clk 0:03:00]}  Ngf6 {[%clk 0:02:58]} 8. Re1 {[%clk 0:02:58]}  Rc8 {[%clk 0:02:57]} 9. b3 {[%clk 0:02:56]}  Nc5 {[%clk 0:02:46]} 10. f3 {[%clk 0:02:41]}  Be7 {[%clk 0:02:17]} 11. c4 {[%clk 0:02:42]}  O-O {[%clk 0:02:13]} 12. Nc3 {[%clk 0:02:42]}  a6 {[%clk 0:02:13]} 13. Be3 {[%clk 0:02:35]}  Qa5 {[%clk 0:02:05]} 14. Qd2 {[%clk 0:02:30]}  Rfd8 {[%clk 0:02:05]} 15. Rad1 {[%clk 0:02:23]}  Bf8 {[%clk 0:02:02]} 16. Nd5 {[%clk 0:02:11]}  Qxd2 {[%clk 0:02:00]} 17. Nxf6+ {[%clk 0:02:11]}  gxf6 {[%clk 0:02:01]} 18. Rxd2 {[%clk 0:02:12]}  Nd7 {[%clk 0:01:50]} 19. Red1 {[%clk 0:02:09]}  Ne5 {[%clk 0:01:50]} 20. a4 {[%clk 0:02:02]}  h5 {[%clk 0:01:49]} 21. h3 {[%clk 0:01:58]}  Kh7 {[%clk 0:01:45]} 22. Kf2 {[%clk 0:01:54]}  Be7 {[%clk 0:01:38]} 23. g4 {[%clk 0:01:51]}  Rg8 {[%clk 0:01:32]} 24. a5 {[%clk 0:01:42]}  Nc6 {[%clk 0:01:26]} 25. Nxc6 {[%clk 0:01:41]}  bxc6 {[%clk 0:01:27]} 26. Bb6 {[%clk 0:01:33]}  c5 {[%clk 0:01:25]} 27. Ke3 {[%clk 0:01:27]}  hxg4 {[%clk 0:00:46]} 28. hxg4 {[%clk 0:01:27]}  Kg6 {[%clk 0:00:46]} 29. Rh2 {[%clk 0:01:14]}  Rh8 {[%clk 0:00:38]} 30. Rdd2 {[%clk 0:01:12]}  Rxh2 {[%clk 0:00:34]} 31. Rxh2 {[%clk 0:01:13]}  f5 {[%clk 0:00:31]} 32. gxf5+ {[%clk 0:01:08]}  exf5 {[%clk 0:00:32]} 33. f4 {[%clk 0:01:01]}  Re8 {[%clk 0:00:22]} 34. Kf3 {[%clk 0:00:52]}  Bf8 {[%clk 0:00:12]} 35. exf5+ {[%clk 0:00:44]}  Kxf5 {[%clk 0:00:12]} 36. Rh8 {[%clk 0:00:44]}  Kf6 {[%clk 0:00:10]} 37. Rg8 {[%clk 0:00:41]}  Ke6 {[%clk 0:00:07]} 38. Rh8 {[%clk 0:00:34]}  Kf6 {[%clk 0:00:07]} 39. Rg8 {[%clk 0:00:25]}  Kf5 {[%clk 0:00:07]} 40. Bc7 {[%clk 0:00:23]}  Ke6 {[%clk 0:00:07]} 41. f5+ {[%clk 0:00:19]}  Ke7 {[%clk 0:00:05]} 42. Rh8 {[%clk 0:00:14]}  Rc8 {[%clk 0:00:03]} 43. Bb6 {[%clk 0:00:15]}  Kd7 {[%clk 0:00:03]} 44. Kg4 {[%clk 0:00:13]}  Re8 {[%clk 0:00:03]} 45. Rh7 {[%clk 0:00:12]}  Ke7 {[%clk 0:00:03]} 46. Kg5 {[%clk 0:00:12]}  Rc8 {[%clk 0:00:03]} 47. Rh8 {[%clk 0:00:10]}  Re8 {[%clk 0:00:01]} 48. Rh3 {[%clk 0:00:10]}  Kd7 {[%clk 0:00:01]} 49. Kf6 {[%clk 0:00:09]}  Re5 {[%clk 0:00:02]} 50. Rh5 {[%clk 0:00:06]}  Ke8 {[%clk 0:00:02]} 51. Rh8 {[%clk 0:00:06]}  Re3 {[%clk 0:00:03]} 52. Bc7 {[%clk 0:00:06]}  Rd3 {[%clk 0:00:03]} 53. Bb8 {[%clk 0:00:05]}  Rd2 {[%clk 0:00:03]} 54. Bc7 {[%clk 0:00:05]}  Rd3 {[%clk 0:00:04]} 55. Bd8 {[%clk 0:00:05]}  Re3 {[%clk 0:00:03]} 56. Bb6 {[%clk 0:00:05]}  Re2 {[%clk 0:00:03]} 57. Ba7 {[%clk 0:00:05]}  Rd2 {[%clk 0:00:03]} 58. Bb8 {[%clk 0:00:05]}  Rd3 {[%clk 0:00:04]} 59. Rg8 {[%clk 0:00:04]}  Rd2 {[%clk 0:00:03]} 60. Kg5 {[%clk 0:00:03]}  Rg2+ {[%clk 0:00:03]} 61. Kf6 {[%clk 0:00:04]}  Rxg8 {[%clk 0:00:04]} 62. Bc7 {[%clk 0:00:04]}  Be7# {[%clk 0:00:05]} 0-1


[Site "https://www.chess.com"]

[Event "Titled Tuesday Blitz November 22 Late 2022"]
[White "Rios Escobar, Adan"]
[Black "Vlassov, Nikolai"]
[WhiteFideId "3403645"]
[BlackFideId "4103360"]
[WhiteElo "2339"]
[BlackElo "2324"]
[Result "0-1"]
[Round "10"]
[TimeControl "180+1"]
[Date "2022.11.23"]
[WhiteClock "0:00:01"]
[BlackClock "0:00:22"]

1. d4 {[%clk 0:02:54]}  Nf6 {[%clk 0:02:59]} 2. g3 {[%clk 0:02:53]}  h5 {[%clk 0:02:55]} 3. Nf3 {[%clk 0:02:48]}  b5 {[%clk 0:02:54]} 4. a4 {[%clk 0:02:44]}  b4 {[%clk 0:02:53]} 5. c4 {[%clk 0:02:44]}  bxc3 {[%clk 0:02:53]} 6. Nxc3 {[%clk 0:02:43]}  Bb7 {[%clk 0:02:50]} 7. Bg2 {[%clk 0:02:42]}  e6 {[%clk 0:02:40]} 8. Bg5 {[%clk 0:02:41]}  Be7 {[%clk 0:02:38]} 9. O-O {[%clk 0:02:40]}  Na6 {[%clk 0:02:34]} 10. Qb1 {[%clk 0:02:38]}  Rb8 {[%clk 0:02:26]} 11. e4 {[%clk 0:02:36]}  Nb4 {[%clk 0:02:20]} 12. Re1 {[%clk 0:02:25]}  a5 {[%clk 0:02:12]} 13. d5 {[%clk 0:02:14]}  Ba6 {[%clk 0:02:11]} 14. Rd1 {[%clk 0:01:14]}  Ng4 {[%clk 0:01:52]} 15. Bxe7 {[%clk 0:01:09]}  Qxe7 {[%clk 0:01:52]} 16. h3 {[%clk 0:01:10]}  Nf6 {[%clk 0:01:50]} 17. dxe6 {[%clk 0:01:00]}  dxe6 {[%clk 0:01:37]} 18. e5 {[%clk 0:00:51]}  Nfd5 {[%clk 0:01:36]} 19. h4 {[%clk 0:00:48]}  Qc5 {[%clk 0:01:17]} 20. Ne4 {[%clk 0:00:39]}  Qc2 {[%clk 0:01:16]} 21. Qxc2 {[%clk 0:00:32]}  Nxc2 {[%clk 0:01:15]} 22. Rac1 {[%clk 0:00:32]}  Ncb4 {[%clk 0:01:01]} 23. Nd4 {[%clk 0:00:28]}  Nd3 {[%clk 0:00:50]} 24. Rc6 {[%clk 0:00:16]}  Rb6 {[%clk 0:00:34]} 25. Rxb6 {[%clk 0:00:09]}  Nxb6 {[%clk 0:00:24]} 26. Rd2 {[%clk 0:00:01]}  Nxe5 {[%clk 0:00:22]} 0-1


[Site "https://www.chess.com"]

[Event "Titled Tuesday Blitz November 22 Late 2022"]
[White "Roque Sola, Jose Luis"]
[Black "monkins"]
[WhiteFideId "5120390"]
[WhiteElo "2117"]
[BlackElo "2271"]
[Result "1-0"]
[Round "10"]
[TimeControl "180+1"]
[Date "2022.11.23"]
[WhiteClock "0:00:14"]
[BlackClock "0:00:01"]

1. c4 {[%clk 0:02:55]}  Nf6 {[%clk 0:02:59]} 2. Nc3 {[%clk 0:02:55]}  c5 {[%clk 0:02:59]} 3. Nf3 {[%clk 0:02:55]}  d5 {[%clk 0:02:59]} 4. cxd5 {[%clk 0:02:54]}  Nxd5 {[%clk 0:02:59]} 5. g3 {[%clk 0:02:54]}  Nc6 {[%clk 0:02:59]} 6. Bg2 {[%clk 0:02:54]}  Nc7 {[%clk 0:02:59]} 7. O-O {[%clk 0:02:53]}  g6 {[%clk 0:03:00]} 8. d3 {[%clk 0:02:50]}  Bg7 {[%clk 0:03:00]} 9. Be3 {[%clk 0:02:44]}  b6 {[%clk 0:03:00]} 10. Qc1 {[%clk 0:02:39]}  O-O {[%clk 0:02:56]} 11. Bh6 {[%clk 0:02:38]}  Bb7 {[%clk 0:02:51]} 12. Bxg7 {[%clk 0:02:38]}  Kxg7 {[%clk 0:02:52]} 13. Ne4 {[%clk 0:02:38]}  h6 {[%clk 0:02:44]} 14. a3 {[%clk 0:02:34]}  Rc8 {[%clk 0:02:39]} 15. b4 {[%clk 0:02:27]}  cxb4 {[%clk 0:02:12]} 16. axb4 {[%clk 0:02:28]}  Ne6 {[%clk 0:02:07]} 17. Qb2+ {[%clk 0:02:26]}  Kg8 {[%clk 0:01:58]} 18. b5 {[%clk 0:02:26]}  Na5 {[%clk 0:01:50]} 19. Ned2 {[%clk 0:01:43]}  Qd6 {[%clk 0:01:24]} 20. Rac1 {[%clk 0:01:32]}  Rxc1 {[%clk 0:01:00]} 21. Rxc1 {[%clk 0:01:31]}  Rc8 {[%clk 0:01:00]} 22. Rxc8+ {[%clk 0:01:30]}  Bxc8 {[%clk 0:01:01]} 23. Ne4 {[%clk 0:01:22]}  Qc7 {[%clk 0:00:53]} 24. Ne5 {[%clk 0:01:12]}  Bb7 {[%clk 0:00:35]} 25. Ng4 {[%clk 0:01:08]}  Bxe4 {[%clk 0:00:20]} 26. Bxe4 {[%clk 0:00:56]}  Kh7 {[%clk 0:00:08]} 27. Qd2 {[%clk 0:00:49]}  Ng5 {[%clk 0:00:05]} 28. h4 {[%clk 0:00:44]}  Nb3 {[%clk 0:00:02]} 29. Qe3 {[%clk 0:00:40]}  Nxe4 {[%clk 0:00:02]} 30. Qxh6+ {[%clk 0:00:36]}  Kg8 {[%clk 0:00:03]} 31. dxe4 {[%clk 0:00:36]}  Qc1+ {[%clk 0:00:03]} 32. Kg2 {[%clk 0:00:33]}  Qxh6 {[%clk 0:00:02]} 33. Nxh6+ {[%clk 0:00:34]}  Kg7 {[%clk 0:00:03]} 34. Ng4 {[%clk 0:00:34]}  Nd4 {[%clk 0:00:04]} 35. Ne5 {[%clk 0:00:28]}  Nxb5 {[%clk 0:00:05]} 36. Nc6 {[%clk 0:00:28]}  e6 {[%clk 0:00:04]} 37. Kf3 {[%clk 0:00:26]}  a5 {[%clk 0:00:04]} 38. Ke3 {[%clk 0:00:26]}  Nd6 {[%clk 0:00:03]} 39. Kd3 {[%clk 0:00:25]}  f6 {[%clk 0:00:03]} 40. f3 {[%clk 0:00:25]}  e5 {[%clk 0:00:03]} 41. Ne7 {[%clk 0:00:17]}  Kf7 {[%clk 0:00:02]} 42. Nd5 {[%clk 0:00:17]}  b5 {[%clk 0:00:02]} 43. Nc7 {[%clk 0:00:14]}  b4 {[%clk 0:00:01]} 44. Na6 {[%clk 0:00:14]} 1-0


[Site "https://www.chess.com"]

[Event "Titled Tuesday Blitz November 22 Late 2022"]
[White "Rubio Tent, Francisco"]
[Black "Graif, William"]
[WhiteFideId "2238233"]
[BlackFideId "2609835"]
[WhiteElo "2211"]
[BlackElo "2205"]
[Result "1-0"]
[Round "10"]
[TimeControl "180+1"]
[Date "2022.11.23"]
[WhiteClock "0:00:10"]
[BlackClock "0:00:01"]

1. e4 {[%clk 0:03:00]}  e5 {[%clk 0:02:50]} 2. Nf3 {[%clk 0:03:00]}  Bc5 {[%clk 0:02:48]} 3. c3 {[%clk 0:02:48]}  d5 {[%clk 0:02:43]} 4. exd5 {[%clk 0:02:40]}  Nf6 {[%clk 0:02:41]} 5. d4 {[%clk 0:02:41]}  exd4 {[%clk 0:02:33]} 6. cxd4 {[%clk 0:02:42]}  Bb4+ {[%clk 0:02:33]} 7. Nc3 {[%clk 0:02:38]}  O-O {[%clk 0:02:30]} 8. Be2 {[%clk 0:02:33]}  Nxd5 {[%clk 0:02:27]} 9. Qb3 {[%clk 0:02:29]}  Re8 {[%clk 0:02:18]} 10. Ne5 {[%clk 0:02:20]}  Be6 {[%clk 0:01:10]} 11. Bc4 {[%clk 0:02:11]}  f6 {[%clk 0:00:52]} 12. Nd3 {[%clk 0:01:15]}  Bxc3+ {[%clk 0:00:42]} 13. bxc3 {[%clk 0:01:16]}  Nf4 {[%clk 0:00:30]} 14. Bxe6+ {[%clk 0:01:10]}  Nxe6 {[%clk 0:00:11]} 15. O-O {[%clk 0:01:10]}  Kh8 {[%clk 0:00:10]} 16. Re1 {[%clk 0:01:07]}  Qd7 {[%clk 0:00:08]} 17. d5 {[%clk 0:00:51]}  Nc5 {[%clk 0:00:05]} 18. Rxe8+ {[%clk 0:00:18]}  Qxe8 {[%clk 0:00:05]} 19. Qd1 {[%clk 0:00:19]}  Nxd3 {[%clk 0:00:04]} 20. Qxd3 {[%clk 0:00:20]}  Qe1+ {[%clk 0:00:04]} 21. Qf1 {[%clk 0:00:20]}  Qxc3 {[%clk 0:00:03]} 22. Be3 {[%clk 0:00:20]}  Nd7 {[%clk 0:00:03]} 23. Rc1 {[%clk 0:00:19]}  Qe5 {[%clk 0:00:03]} 24. Qb5 {[%clk 0:00:18]}  Nb6 {[%clk 0:00:02]} 25. a4 {[%clk 0:00:15]}  Qxd5 {[%clk 0:00:02]} 26. Qb4 {[%clk 0:00:10]}  c6 {[%clk 0:00:01]} 27. h3 {[%clk 0:00:10]} 1-0


[Site "https://www.chess.com"]

[Event "Titled Tuesday Blitz November 22 Late 2022"]
[White "Sadhwani, Raunak"]
[Black "Terry, Renato"]
[WhiteFideId "35093487"]
[BlackFideId "3803457"]
[WhiteElo "2656"]
[BlackElo "2577"]
[Result "0-1"]
[Round "10"]
[TimeControl "180+1"]
[Date "2022.11.22"]
[WhiteClock "0:00:05"]
[BlackClock "0:00:02"]

1. c4 {[%clk 0:03:00]}  e5 {[%clk 0:02:57]} 2. g3 {[%clk 0:03:01]}  Nf6 {[%clk 0:02:57]} 3. Bg2 {[%clk 0:03:01]}  c6 {[%clk 0:02:57]} 4. Nf3 {[%clk 0:02:56]}  e4 {[%clk 0:02:58]} 5. Nd4 {[%clk 0:02:57]}  d5 {[%clk 0:02:58]} 6. d3 {[%clk 0:02:46]}  Bb4+ {[%clk 0:02:53]} 7. Bd2 {[%clk 0:02:41]}  Bc5 {[%clk 0:02:45]} 8. Nb3 {[%clk 0:02:40]}  Bxf2+ {[%clk 0:02:36]} 9. Kxf2 {[%clk 0:02:40]}  e3+ {[%clk 0:02:36]} 10. Kxe3 {[%clk 0:02:11]}  Ng4+ {[%clk 0:02:33]} 11. Kf3 {[%clk 0:02:10]}  Qf6+ {[%clk 0:02:12]} 12. Bf4 {[%clk 0:02:10]}  g5 {[%clk 0:02:12]} 13. e3 {[%clk 0:01:53]}  Qxb2 {[%clk 0:01:57]} 14. Qd2 {[%clk 0:01:50]}  Qxd2 {[%clk 0:01:39]} 15. N1xd2 {[%clk 0:01:51]}  gxf4 {[%clk 0:01:40]} 16. gxf4 {[%clk 0:01:40]}  Nf6 {[%clk 0:01:29]} 17. Rac1 {[%clk 0:01:39]}  Na6 {[%clk 0:01:24]} 18. cxd5 {[%clk 0:01:32]}  Nxd5 {[%clk 0:01:23]} 19. a3 {[%clk 0:01:31]}  Rg8 {[%clk 0:01:23]} 20. Rhg1 {[%clk 0:01:20]}  Bf5 {[%clk 0:01:23]} 21. Ne4 {[%clk 0:01:17]}  O-O-O {[%clk 0:01:17]} 22. Kf2 {[%clk 0:01:00]}  Nac7 {[%clk 0:01:10]} 23. Nd4 {[%clk 0:00:46]}  Bxe4 {[%clk 0:01:02]} 24. Bh3+ {[%clk 0:00:45]}  Kb8 {[%clk 0:01:01]} 25. dxe4 {[%clk 0:00:35]}  Nf6 {[%clk 0:01:02]} 26. Kf3 {[%clk 0:00:34]}  h5 {[%clk 0:00:50]} 27. Rxg8 {[%clk 0:00:33]}  Rxg8 {[%clk 0:00:49]} 28. Nf5 {[%clk 0:00:32]}  Ng4 {[%clk 0:00:21]} 29. Bxg4 {[%clk 0:00:32]}  hxg4+ {[%clk 0:00:22]} 30. Kg3 {[%clk 0:00:32]}  f6 {[%clk 0:00:21]} 31. Rd1 {[%clk 0:00:26]}  Nb5 {[%clk 0:00:22]} 32. Nh6 {[%clk 0:00:21]}  Rg7 {[%clk 0:00:09]} 33. Rd3 {[%clk 0:00:17]}  c5 {[%clk 0:00:05]} 34. Nxg4 {[%clk 0:00:14]}  c4 {[%clk 0:00:06]} 35. Rd8+ {[%clk 0:00:13]}  Kc7 {[%clk 0:00:06]} 36. Rd5 {[%clk 0:00:14]}  Kc6 {[%clk 0:00:04]} 37. a4 {[%clk 0:00:07]}  Nc3 {[%clk 0:00:03]} 38. Rd8 {[%clk 0:00:05]}  Nxe4+ {[%clk 0:00:03]} 39. Kf3 {[%clk 0:00:06]}  f5 {[%clk 0:00:03]} 40. Ne5+ {[%clk 0:00:06]}  Kc7 {[%clk 0:00:02]} 41. Rd4 {[%clk 0:00:03]}  c3 {[%clk 0:00:02]} 42. Rc4+ {[%clk 0:00:04]}  Kd6 {[%clk 0:00:02]} 43. Nd3 {[%clk 0:00:04]}  Kd5 {[%clk 0:00:02]} 44. Rd4+ {[%clk 0:00:05]}  Ke6 {[%clk 0:00:02]} 45. Rc4 {[%clk 0:00:05]}  Nd2+ {[%clk 0:00:02]} 0-1


[Site "https://www.chess.com"]